[Event "Budapest One Week IM-B 03-2025"]
[Site "Budapest"]
[Date "2025.03.22"]
[Round "9.5"]
[White "Shah, Vishwa"]
[Black "Ongut, Tamas Gunes"]
[Result "1/2-1/2"]
[Annotator "TA"]
[ECO "C84"]
[WhiteElo "2172"]
[BlackElo "2290"]
[PlyCount "111"]
[EventDate "2025.03.17"]
[EventType "tourn"]
[EventCountry "HUN"]
[SourceTitle "playchess.com"]
[Source "ChessBase"]
[SourceQuality "1"]
[TimeControl "5400+30"]

{[%evp 23,111,10,11,6,15,21,20,21,13,12,24,25,24,18,22,0,3,0,0,-10,-6,-11,-13,-20,7,-38,-27,-34,-38,-26,-27,-24,-20,-55,-56,-56,-59,-53,-50,-23,-43,-80,-85,-83,-75,-86,-87,-103,-96,-102,-16,-52,-58,-67,-72,-70,-71,-75,-77,-78,-72,-85,-42,-42,-42,-37,-37,-104,0,0,0,0,0,0,0,0,0,0,0,0,2,0,0,0,0,0,0,0,0,0]} 1. e4 {[%emt 0:00:02]} e5 {[%emt 0:24:04]} 2. Nf3 {[%emt 0:00:08]} Nc6 {[%emt 0:00:07]} 3. Bb5 {[%emt 0:00:11]} a6 {[%emt 0:00:09]} 4. Ba4 {[%emt 0:00:03]} Nf6 {[%emt 0:00:08]} 5. O-O {[%emt 0:00:05]} Be7 {[%emt 0:00:09]} 6. d3 {[%emt 0:00:20]} b5 {[%emt 0:00:11]} 7. Bb3 d6 {[%emt 0:00:08]} 8. c3 {[%emt 0:00:33]} O-O {[%emt 0:00:11]} 9. a4 {[%emt 0:00:19]} Bd7 {[%emt 0:01:29]} 10. Bc2 {[%emt 0:00:33]} h6 {[%emt 0:00:17]} 11. Re1 {[%emt 0:01:15]} Re8 {[%emt 0:00:11]} 12. Nbd2 {[%emt 0:00:58]} Bf8 {[%emt 0:00:13]} 13. h3 {[%emt 0:02:52] C90: Closed Ruy Lopez with 7...d6: Early deviations.} Rb8 {[%emt 0:02:14]} 14. axb5 {[%emt 0:07:32]} axb5 {[%emt 0:00:09]} 15. Nf1 {[%emt 0:01:50]} d5 {[%emt 0:03:30]} 16. Ng3 $146 {[%emt 0:02:47]} (16. exd5 Nxd5 17. Bb3 Nf6 18. Ng3 b4 19. Bd2 Bd6 20. Nh4 bxc3 21. bxc3 e4 22. dxe4 Bxg3 23. fxg3 {½-½ Navara,D (2667)-Keymer,V (2738) Prague Masters 6th 2024 (2)}) 16... Bd6 {[%emt 0:05:42]} 17. Nh4 {[%emt 0:09:34]} b4 {[%emt 0:10:35]} 18. Nhf5 {[%emt 0:00:58]} Bf8 {[%emt 0:02:20]} 19. Ba4 {[%emt 0:06:56]} bxc3 {[%emt 0:01:16]} 20. bxc3 {[%emt 0:00:03]} Ne7 {[%emt 0:06:53]} 21. Ba3 {[%emt 0:06:35]} Nxf5 {[%emt 0:00:42]} 22. Nxf5 {[%emt 0:00:07]} Bxa4 {[%emt 0:10:54]} 23. Qxa4 {[%emt 0:00:06]} Ra8 {[%emt 0:00:36]} 24. Qb3 {[%emt 0:00:06]} (24. Qxa8 {simplifies} Qxa8 25. Bxf8 Kxf8 26. Rxa8 Rxa8 27. exd5 Nxd5 28. Rxe5 Rd8 29. c4) 24... Rxa3 {[%emt 0:01:01]} 25. Rxa3 {[%emt 0:00:06]} Bxa3 {[%emt 0:00:07]} 26. Qxa3 {[%emt 0:00:02]} dxe4 {[%emt 0:00:08]} 27. dxe4 {[%emt 0:00:23]} Qd2 {[%emt 0:00:11]} 28. Rf1 {[%emt 0:14:24]} Nxe4 {[%emt 0:04:36]} 29. Qa4 {[%emt 0:00:03][%csl LRe4,LRe8]} Nf6 $36 {[%emt 0:00:10][%mdl 2048] Black has good play.} (29... Nxc3 $2 {too greedy.} 30. Qxe8+ Kh7 31. Ne7 $18 (31. Qxf7 Qg5 $18) (31. Qxe5 Ne2+ 32. Kh2 Qf4+ 33. Qxf4 Nxf4 $18)) 30. Qc6 {[%emt 0:00:05]} Qf4 {[%emt 0:03:01]} 31. Ne3 {[%emt 0:02:02][%cal Oe3d5] [#]} Re7 {[%emt 0:02:41]} 32. Nd5 {[%emt 0:03:42]} Nxd5 {[%emt 0:01:10]} 33. Qxd5 $17 {[%emt 0:00:03][%mdl 4096] Endgame Qd8+ would now be deadly. KQR-KQR. Black is a pawn up.} Kh7 {[%emt 0:01:58]} 34. Qd8 {[%emt 0:03:51]} Qf6 {[%emt 0:00:55]} 35. Rd1 {[%emt 0:00:18]} e4 {[%emt 0:00:35]} 36. c4 {[%emt 0:02:54]} Re6 {[%emt 0:03:45]} (36... Qe6 $17 {[%cal Of7f5]} 37. Qd5 Kg6) 37. Qxc7 {[%emt 0:04:53]} Rc6 $1 {[%emt 0:00:07]} 38. Qd7 {[%emt 0:01:35]} Rxc4 {[%emt 0:00:12]} 39. Qd5 {[%emt 0:00:14]} Rb4 {[%emt 0:00:13]} 40. Qc5 {[%emt 0:07:13]} Rb6 {[%emt 0:02:01]} 41. Re1 {[%emt 0:03:27]} Re6 {[%emt 0:00:10]} 42. Qd5 {[%emt 0:01:37]} Qe5 {[%emt 0:00:28]} 43. Qxe5 {[%emt 0:01:39]} Rxe5 $15 {[%emt 0:00:08] KR-KR. Black is a pawn up.} 44. f3 {[%emt 0:00:05]} f5 {[%emt 0:00:24]} 45. fxe4 {[%emt 0:00:04]} (45. Kf2 $15) 45... fxe4 {[%emt 0:00:05]} ({Better is} 45... Rxe4 $17 46. Rb1 h5) 46. Kf2 $11 {[%emt 0:00:08] The position is equal.} h5 {[%emt 0:01:18]} 47. Ke3 {[%emt 0:01:04]} Re6 {[%emt 0:02:01]} 48. Kf4 {[%emt 0:01:47]} Rf6+ {[%emt 0:00:44]} 49. Kg5 {[%emt 0:00:49]} Rg6+ {[%emt 0:00:12]} 50. Kxh5 {[%emt 0:00:10]} Rxg2 {[%emt 0:01:13] [#] ( -> ...g6+)} 51. Rxe4 {[%emt 0:00:05]} g6+ {[%emt 0:00:08]} 52. Kh4 {[%emt 0:00:21]} Kh6 {[%emt 0:00:06][%csl Gg2,Gh6][%cal Rg6g5]} 53. Re6 {[%emt 0:00:36]} Kg7 {[%emt 0:00:21]} 54. Ra6 {[%emt 0:00:21]} Kh6 {[%emt 0:01:01]} 55. Rb6 {[%emt 0:00:10]} Rg1 {[%emt 0:00:26]} 56. Ra6 {[%emt 0:00:06] Weighted Error Value: White=0.10 (very precise) /Black=0.09 (flawless)   Mistake:       	White=1     	Black=2      Inaccurate:     	White=4     	Black=2      OK:         	White=15    	Black=14     Best:        	White=2     	Black=4      Strong:       	---       	Black=1} 1/2-1/2